fUST/lending_fUST_20251119
["ID","MTS","AMOUNT","RATE_DAILY","PERIOD"]
[394404926,1763535039392,-2000.0,0.00022816,2]
[394404927,1763535039401,-2000.0,0.00022816,2]
[394404929,1763535039410,-2000.0,0.00022816,2]
[394404931,1763535039419,-420.0,0.00022821,2]
[394404933,1763535039427,-160.0,0.00022845,2]
[394404935,1763535039436,-992.58501698,0.00022871,2]
[394404937,1763535039445,-894.0,0.00022932,2]
[394404939,1763535039454,-894.0,0.00022956,2]
[394404941,1763535039462,-500.0,0.00022964,2]
[394404943,1763535039472,-894.0,0.00022992,2]
[394404945,1763535039481,-500.0,0.00023017,2]
[394404947,1763535039490,-504.53701196,0.00023063,2]
[394404949,1763535039499,-1003.87177589,0.00023123,2]
[394404951,1763535039508,-600.0,0.00023174,20]
[394404953,1763535039517,-525.37,0.0002319,2]
[394404955,1763535039527,-894.0,0.00023211,2]
[394404957,1763535039536,-160.0,0.00023213,2]
[394404959,1763535039545,-1000.0,0.00023232,2]
[394404961,1763535039554,-1110.10221103,0.00023232,2]
[394404963,1763535039563,-1000.0,0.00023232,2]
[394404965,1763535039573,-1000.0,0.00023232,2]
[394404967,1763535039581,-1004.58010999,0.00023232,2]
[394404969,1763535039590,-1000.0,0.00023232,2]
[394404971,1763535039600,-1000.0,0.00023232,2]
[394404973,1763535039610,-373.07139652,0.00023232,2]
[394404975,1763535039620,-507.23390965,0.00023232,2]
[394404977,1763535039629,-1000.0,0.00023232,2]
[394404979,1763535039638,-1000.0,0.00023232,2]
[394404981,1763535039648,-424.07590189,0.00023232,2]
[394404983,1763535039657,-693.56543964,0.00023232,2]
[394404985,1763535039666,-811.0902021,0.00023232,2]
[394404987,1763535039675,-836.46863116,0.00023232,2]
[394404989,1763535039684,-1000.0,0.00023232,2]
[394404991,1763535039693,-458.60908153,0.00023232,2]
[394404993,1763535039702,-1000.0,0.00023232,2]
[394404994,1763535039711,-414.92008594,0.00023248,2]
[394404997,1763535039721,-1486.75727207,0.00023268,2]
[394404998,1763535039730,-500.0,0.00023291,2]
[394405000,1763535039739,-2500.0,0.00023364,2]
[394405002,1763535039749,-2500.0,0.00023364,2]
[394405004,1763535039758,-2500.0,0.00023364,2]
[394405017,1763535039870,-1603.96648235,0.00023364,2]
[394405019,1763535039882,-2500.0,0.00023364,2]
[394405021,1763535039891,-1000.0,0.00023512,2]
[394405023,1763535039901,-500.0,0.00023565,2]
[394405025,1763535039910,-503.70002224,0.00023664,2]
[394405027,1763535039919,-500.0,0.00023664,2]
[394405029,1763535039929,-183.10083734,0.00023664,2]
[394405031,1763535039939,-500.0,0.00023664,2]
[394405033,1763535039948,-500.0,0.00023664,2]
[394405035,1763535039958,-500.0,0.00023664,2]
[394405037,1763535039968,-500.0,0.00023664,2]
[394405039,1763535039977,-501.65067781,0.00023664,2]
[394405041,1763535039987,-500.0,0.00023664,2]
[394405043,1763535039996,-513.38764164,0.00023664,2]
[394405046,1763535040005,-500.70555796,0.00023664,2]
[394405049,1763535040014,-500.0,0.00023664,2]
[394405053,1763535040023,-500.0,0.00023664,2]
[394405057,1763535040032,-500.0,0.00023664,2]
[394405061,1763535040041,-500.0,0.00023664,2]
[394405064,1763535040050,-430.05531192,0.00023664,2]
[394405067,1763535040061,-992.58501698,0.0002368,2]
[394405069,1763535040070,-260.0,0.00023761,2]
[394405072,1763535040079,-1500.0,0.0002378,2]
[394405075,1763535040089,-1007.28708574,0.0002378,2]
[394405078,1763535040098,-1500.0,0.0002378,2]
[394405081,1763535040108,-505.96447598,0.0002378,2]
[394405086,1763535040118,-1500.0,0.0002378,2]
[394405089,1763535040127,-1500.0,0.0002378,2]
[394405090,1763535040136,-1500.0,0.0002378,2]
[394405092,1763535040144,-1057.60843727,0.0002378,2]
[394405094,1763535040153,-1500.0,0.0002378,2]
[394405096,1763535040162,-500.0,0.00023839,2]
[394405098,1763535040171,-258.0,0.00023855,2]
[394405100,1763535040180,-2566.07480992,0.00023912,2]
[394405102,1763535040189,-3000.0,0.00023912,2]
[394405104,1763535040198,-3000.0,0.00023912,2]
[394405106,1763535040206,-3000.0,0.00023912,2]
[394405108,1763535040216,-174.73,0.00023975,2]
[394405110,1763535040224,-1107.98317633,0.0002406,2]
[394405112,1763535040233,-500.0,0.00024113,2]
[394405114,1763535040243,-1002.68621881,0.00024212,2]
[394405116,1763535040252,-501.01226821,0.00024212,2]
[394405118,1763535040261,-1000.0,0.00024212,2]
[394405120,1763535040270,-1003.44060064,0.00024212,2]
[394405122,1763535040280,-1000.0,0.00024212,2]
[394405124,1763535040289,-535.99228928,0.00024212,2]
[394405126,1763535040298,-1000.0,0.00024212,2]
[394405128,1763535040309,-1015.5092663,0.00024212,2]
[394405130,1763535040318,-229.41128076,0.00024212,2]
[394405132,1763535040327,-1000.0,0.00024212,2]
[394405134,1763535040336,-166.8028097,0.00024241,2]
[394405136,1763535040345,-2199.39,0.000243,14]
[394405138,1763535040354,-735.4,0.000243,7]
[394405140,1763535040364,-360.0,0.00024309,2]
[394405142,1763535040373,-1487.15738357,0.00024328,2]
[394405144,1763535040383,-1488.72259841,0.00024328,2]
[394405146,1763535040392,-1487.99960205,0.00024328,2]
[394405148,1763535040402,-2000.0,0.00024328,2]
[394405150,1763535040411,-944.92975414,0.00024328,2]
[394405152,1763535040421,-2000.0,0.00024328,2]
[394405154,1763535040430,-500.0,0.00024387,2]
[394405156,1763535040439,-3500.0,0.0002446,2]
[394405158,1763535040448,-3500.0,0.0002446,2]
[394405160,1763535040459,-3500.0,0.0002446,2]
[394405162,1763535040468,-992.58501698,0.0002449,2]
[394405164,1763535040477,-16170.57,0.000245,2]
[394405165,1763535040486,-200.0,0.00024658,2]
[394405166,1763535040496,-1500.0,0.0002476,2]
[394405167,1763535040505,-1500.0,0.0002476,2]
[394405168,1763535040514,-1514.93271038,0.0002476,2]
[394405169,1763535040523,-1040.56070445,0.0002476,2]
[394405170,1763535040532,-587.0,0.00024825,2]
[394405171,1763535040541,-460.0,0.00024857,2]
[394405172,1763535040550,-1746.14522943,0.00024876,2]
[394405176,1763535040640,-753.85477057,0.00024876,2]
[394405177,1763535040649,-2500.0,0.00024876,2]
[394405179,1763535040658,-2151.0,0.0002493,2]
[394405181,1763535040667,-989.0,0.0002493,2]
[394405183,1763535040676,-630.0,0.0002493,2]
[394405185,1763535040685,-207.112456,0.00025,2]
[394405187,1763535040693,-1895.35672974,0.00025008,2]
[394405189,1763535040703,-4000.0,0.00025008,2]
[394405191,1763535040713,-480.06385227,0.00025079,2]
[394405193,1763535040722,-993.577602,0.000253,2]
[394405195,1763535040732,-1677.96074033,0.00025308,2]
[394405197,1763535040742,-2052.01767114,0.00025308,2]
[394405199,1763535040751,-500.0,0.00025327,2]
[394405201,1763535040760,-560.0,0.00025405,2]
[394405203,1763535040769,-3000.0,0.00025424,2]
[394405205,1763535040778,-3000.0,0.00025424,2]
[394405207,1763535040787,-720.0,0.00025491,20]
[394405209,1763535040795,-500.0,0.00025573,2]
[394405211,1763535040805,-500.0,0.00025573,2]
[394405213,1763535040814,-500.0,0.00025573,2]
[394405215,1763535040823,-500.0,0.00025573,2]
[394405217,1763535040832,-179.97069143,0.00025573,2]
[394405219,1763535040841,-513.57092707,0.00025573,2]
[394405221,1763535040850,-500.0,0.00025573,2]
[394405223,1763535040859,-500.0,0.00025573,2]
[394405225,1763535040869,-500.54156975,0.00025573,2]
[394405227,1763535040880,-500.62162773,0.00025573,2]
[394405229,1763535040889,-500.0,0.00025573,2]
[394405231,1763535040898,-500.0,0.00025573,2]
[394405233,1763535040907,-370.38011206,0.00025573,2]
[394405235,1763535040918,-500.0,0.00025573,2]
[394405237,1763535040928,-500.0,0.00025573,2]
[394405239,1763535040936,-302.48982902,0.00025573,2]
[394405241,1763535040946,-500.0,0.00025573,2]
[394405243,1763535040955,-500.0,0.00025573,2]
[394405245,1763535040965,-500.0,0.00025573,2]
[394405247,1763535040974,-500.0,0.00025573,2]
[394405249,1763535040983,-500.0,0.00025573,2]
[394405251,1763535040992,-500.0,0.00025573,2]
[394405253,1763535041002,-500.0,0.00025573,2]
[394405255,1763535041011,-500.0,0.00025573,2]
[394405257,1763535041020,-162.912725,0.00025727,2]
[394405259,1763535041030,-285.0,0.00025855,2]
[394405261,1763535041039,-508.37402696,0.00025875,2]
[394405263,1763535041049,-660.0,0.00025953,2]
[394405265,1763535041059,-3500.0,0.00025972,2]
[394405267,1763535041068,-3500.0,0.00025972,2]
[394405269,1763535041077,-500.0,0.00026117,2]
[394405271,1763535041086,-500.37423692,0.00026117,2]
[394405273,1763535041095,-504.05832909,0.00026117,2]
[394405275,1763535041104,-1000.0,0.00026121,2]
[394405277,1763535041113,-1000.0,0.00026121,2]
[394405279,1763535041122,-653.99024312,0.00026121,2]
[394405281,1763535041131,-847.06520978,0.00026121,2]
[394405283,1763535041141,-565.66664347,0.00026121,2]
[394405285,1763535041150,-1000.0,0.00026121,2]
[394405287,1763535041159,-1000.0,0.00026121,2]
[394405289,1763535041168,-1000.0,0.00026121,2]
[394405291,1763535041177,-1000.0,0.00026121,2]
[394405293,1763535041186,-503.42139426,0.00026121,2]
[394405295,1763535041194,-1000.0,0.00026121,2]
[394405297,1763535041203,-1000.0,0.00026121,2]
[394405299,1763535041213,-640.23889196,0.00026121,2]
[394405301,1763535041222,-1000.0,0.00026121,2]
[394405303,1763535041232,-503.17522095,0.00026121,2]
[394405305,1763535041241,-517.94286669,0.00026121,2]
[394405342,1763535043369,-482.05713331,0.00026121,2]
[394405343,1763535043379,-1000.0,0.00026121,2]
[394405344,1763535043389,-1000.0,0.00026121,2]
[394405345,1763535043398,-760.0,0.00026501,2]
[394405346,1763535043407,-4000.0,0.0002652,2]
[394405347,1763535043417,-4000.0,0.0002652,2]
[394405348,1763535043426,-768.28674227,0.00026665,2]
[394405349,1763535043436,-1500.0,0.00026668,2]
[394405350,1763535043445,-1500.0,0.00026668,2]
[394405351,1763535043454,-1526.52279865,0.00026668,2]
[394405352,1763535043464,-1500.0,0.00026668,2]
[394405353,1763535043473,-1500.0,0.00026668,2]
[394405354,1763535043483,-1500.0,0.00026668,2]
[394405355,1763535043492,-1500.0,0.00026668,2]
[394405356,1763535043502,-1500.0,0.00026668,2]
[394405357,1763535043511,-1500.0,0.00026668,2]
[394405358,1763535043520,-523.77702089,0.00026668,2]
[394405359,1763535043529,-1459.47915147,0.00026668,2]
[394405360,1763535043538,-1007.04560677,0.00026668,2]
[394405361,1763535043547,-500.0,0.00026673,2]
[394405362,1763535043556,-500.0,0.00026673,2]
[394405363,1763535043565,-500.0,0.00026673,2]
[394405364,1763535043574,-158.92081534,0.00026673,2]
[394405365,1763535043583,-300.0,0.00026673,2]
[394405366,1763535043593,-150.0,0.00026673,2]
[394405367,1763535043603,-162.76602733,0.00026673,2]
[394405368,1763535043612,-400.87691731,0.00027,3]
[394405369,1763535043622,-823.0,0.00027004,2]
[394405370,1763535043631,-860.0,0.00027049,2]
[394405371,1763535043640,-4500.0,0.00027068,2]
[394405372,1763535043650,-4500.0,0.00027068,2]
[394405373,1763535043659,-1474.94955239,0.00027216,2]
[394405374,1763535043668,-2000.0,0.00027216,2]
[394405375,1763535043678,-2001.71649247,0.00027216,2]
[394405376,1763535043687,-1154.89906358,0.00027216,2]
[394405377,1763535043697,-2000.0,0.00027216,2]
[394405378,1763535043707,-0.29782622,0.00027216,2]
[394405379,1763535043719,-1999.70217378,0.00027216,2]
[394405380,1763535043728,-2000.0,0.00027216,2]
[394405381,1763535043738,-2000.0,0.00027216,2]
[394405382,1763535043747,-503.98429102,0.00027221,2]
[394405383,1763535043757,-501.83082701,0.00027221,2]
[394405384,1763535043767,-160.96145731,0.00027221,2]
[394405385,1763535043776,-250.0,0.00027221,2]
[394405386,1763535043786,-735.4,0.000273,7]
[394405387,1763535043795,-1000.0,0.00027397,2]
[394405388,1763535043805,-1000.0,0.00027397,2]
[394405389,1763535043816,-1000.0,0.00027397,2]
[394405390,1763535043825,-1000.0,0.00027397,2]
[394405391,1763535043835,-1000.0,0.00027397,2]
[394405392,1763535043845,-1000.0,0.00027397,2]
[394405393,1763535043855,-1000.0,0.00027397,2]
[394405394,1763535043866,-967.08107596,0.00027397,2]
[394405395,1763535043877,-150.0,0.00027397,5]
[394405396,1763535043887,-150.0,0.00027397,5]
[394405397,1763535043897,-1168.6,0.000274,2]
[394405398,1763535043907,-2199.39,0.000274,14]
[394405399,1763535043916,-600.0,0.00027495,5]
[394405400,1763535043925,-960.0,0.00027597,2]
[394405401,1763535043934,-1792.76527071,0.00027616,5]
[394405402,1763535043943,-5000.0,0.00027616,5]
[394405403,1763535043954,-2500.0,0.00027764,5]
[394405404,1763535043963,-2500.0,0.00027764,5]
[394405405,1763535043973,-1012.63069236,0.00027764,5]
[394405406,1763535043982,-514.36977421,0.00027764,5]
[394405407,1763535043992,-2536.70357932,0.00027764,5]
[394405408,1763535044001,-262.82799552,0.00027768,5]
[394405409,1763535044011,-312.0,0.00027855,2]
[394405410,1763535044020,-2151.0,0.0002793,2]
[394405411,1763535044029,-989.0,0.0002793,2]
[394405412,1763535044038,-630.0,0.0002793,2]
[394405413,1763535044047,-250.0,0.00027945,5]
[394405414,1763535044056,-250.0,0.00027945,5]
[394405415,1763535044069,-16170.57,0.00028,2]
[394405416,1763535044079,-400.87691731,0.00028,10]
[394405417,1763535044088,-864.0,0.0002804,30]
[394405418,1763535044096,-1060.0,0.00028145,2]
[394405419,1763535044106,-5500.0,0.00028164,5]
[394405420,1763535044115,-500.39101686,0.00028174,5]
[394405421,1763535044124,-500.0,0.00028174,5]
[394405422,1763535044133,-4070.32907369,0.0002819,2]
[394405423,1763535044142,-344.72879565,0.00028257,5]
[394405424,1763535044151,-500.0,0.00028257,5]
[394405425,1763535044160,-501.02696155,0.00028257,5]
[394405426,1763535044169,-500.0,0.00028257,5]
[394405427,1763535044179,-159.64954857,0.00028257,5]
[394405428,1763535044188,-500.0,0.00028257,5]
[394405429,1763535044198,-204.97747472,0.00028273,2]
[394405430,1763535044207,-500.0,0.00028273,2]
[394405431,1763535044216,-500.0,0.00028273,2]
[394405432,1763535044226,-151.0,0.00028273,2]
[394405433,1763535044235,-151.0,0.00028273,2]
[394405434,1763535044244,-500.0,0.00028273,2]
[394405435,1763535044254,-500.0,0.00028273,2]
[394405436,1763535044263,-151.0,0.00028273,2]
[394405437,1763535044272,-151.0,0.00028273,2]
[394405438,1763535044283,-500.0,0.000283,2]
[394405439,1763535044292,-500.0,0.000283,2]
[394405440,1763535044303,-221.39306955,0.000283,2]
[394405441,1763535044313,-151.0,0.000283,2]
[394405442,1763535044322,-500.0,0.000283,2]
[394405443,1763535044331,-500.0,0.000283,2]
[394405444,1763535044340,-151.0,0.000283,2]
[394405445,1763535044351,-303.76713658,0.00028309,2]
[394405446,1763535044361,-204.83267941,0.00028309,2]
[394405447,1763535044370,-227.53588212,0.00028309,2]
[394405448,1763535044379,-151.69058806,0.00028309,2]
[394405449,1763535044388,-3000.0,0.00028312,5]
[394405450,1763535044399,-3000.0,0.00028312,5]
[394405451,1763535044408,-900.0,0.00028316,5]
[394405452,1763535044418,-500.0,0.00028328,2]
[394405453,1763535044429,-165.04320545,0.00028328,2]
[394405454,1763535044439,-151.0,0.00028328,2]
[394405455,1763535044447,-500.0,0.00028328,2]
[394405456,1763535044456,-500.0,0.00028328,2]
[394405457,1763535044465,-151.0,0.00028328,2]
[394405458,1763535044474,-500.0,0.00028355,2]
[394405459,1763535044483,-151.0,0.00028355,2]
[394405460,1763535044492,-500.0,0.00028355,2]
[394405461,1763535044501,-500.0,0.00028355,2]
[394405462,1763535044510,-220.03643772,0.00028355,2]
[394405463,1763535044519,-500.0,0.00028383,2]
[394405464,1763535044529,-279.23716234,0.00028383,2]
[394405465,1763535044538,-500.0,0.00028383,2]
[394405466,1763535044547,-500.0,0.00028383,2]
[394405467,1763535044556,-500.0,0.0002841,2]
[394405468,1763535044566,-500.0,0.0002841,2]
[394405469,1763535044575,-500.0,0.0002841,2]
[394405470,1763535044685,-303.76713658,0.00028431,9]
[394405471,1763535044695,-204.83267941,0.00028431,9]
[394405472,1763535044705,-500.0,0.00028437,2]
[394405473,1763535044714,-500.0,0.00028437,2]
[394405474,1763535044723,-500.0,0.00028437,2]
[394405475,1763535044733,-500.0,0.00028465,2]
[394405476,1763535044742,-500.0,0.00028465,2]
[394405477,1763535044751,-500.0,0.00028465,2]
[394405478,1763535044760,-500.0,0.00028492,2]
[394405479,1763535044770,-500.0,0.00028492,2]
[394405480,1763535044779,-500.0,0.00028492,2]
[394405481,1763535044788,-350.0,0.00028493,5]
[394405482,1763535044799,-446.76715095,0.00028493,5]
[394405483,1763535044810,-500.0,0.0002852,2]
[394405484,1763535044818,-500.0,0.0002852,2]
[394405485,1763535044827,-648.92516375,0.00028547,2]
[394405486,1763535044836,-303.76713658,0.00028554,17]
[394405487,1763535044845,-204.83267941,0.00028554,17]
[394405488,1763535044854,-227.53588212,0.00028554,17]
[394405489,1763535044864,-2227.03792797,0.0002862,2]
[394405490,1763535044877,-303.76713658,0.00028676,25]
[394405491,1763535044886,-204.83267941,0.00028676,25]
[394405492,1763535044895,-1160.0,0.00028693,2]
[394405493,1763535044905,-2000.0,0.00028712,5]
[394405494,1763535044914,-1000.0,0.00028722,5]
[394405495,1763535044923,-303.76713658,0.00028799,32]
[394405496,1763535044933,-204.83267941,0.00028799,32]
[394405497,1763535044942,-227.53588212,0.00028799,32]
[394405498,1763535044953,-505.14917606,0.00028805,5]
[394405499,1763535044963,-1000.0,0.00028805,5]
[394405500,1763535044972,-1000.0,0.00028805,5]
[394405501,1763535044981,-3247.17849951,0.0002886,5]
[394405502,1763535044990,-3500.0,0.0002886,5]
[394405503,1763535044999,-500.0,0.00028873,2]
[394405504,1763535045008,-303.76713658,0.00028921,40]
[394405505,1763535045018,-204.83267941,0.00028921,40]
[394405506,1763535045027,-303.76713658,0.00029044,48]
[394405507,1763535045036,-204.83267941,0.00029044,48]
[394405508,1763535045046,-227.53588212,0.00029044,48]
[394405509,1763535045055,-470.73,0.00029091,2]
[394405510,1763535045066,-208.30217644,0.00029138,5]
[394405511,1763535045076,-303.76713658,0.00029166,56]
[394405512,1763535045086,-204.83267941,0.00029166,56]
[394405513,1763535045095,-151.69058806,0.00029166,56]
[394405514,1763535045104,-1260.0,0.00029241,2]
[394405515,1763535045114,-1601.16437075,0.0002927,5]
[394405516,1763535045124,-303.76713658,0.00029289,63]
[394405517,1763535045133,-227.53588212,0.00029289,63]
[394405518,1763535045142,-204.83267941,0.00029289,63]
[394405519,1763535045151,-1013.89104857,0.00029353,5]
[394405520,1763535045161,-1500.0,0.00029353,5]
[394405521,1763535045171,-1135.0,0.00029375,2]
[394405522,1763535045180,-1608.4688885,0.00029408,5]
[394405523,1763535045190,-303.76713658,0.00029411,71]
[394405524,1763535045199,-204.83267941,0.00029411,71]
[394405525,1763535045208,-1000.0,0.00029421,2]
[394405526,1763535045217,-1168.6,0.000295,2]
[394405527,1763535045227,-303.76713658,0.00029534,79]
[394405528,1763535045236,-227.53588212,0.00029534,79]
[394405529,1763535045245,-204.83267941,0.00029534,79]
[394405530,1763535045255,-735.4,0.000296,7]
[394405531,1763535045265,-303.76713658,0.00029657,86]
[394405532,1763535045274,-204.83267941,0.00029657,86]
[394405533,1763535045283,-303.76713658,0.00029779,94]
[394405534,1763535045292,-227.53588212,0.00029779,94]
[394405535,1763535045302,-204.83267941,0.00029779,94]
[394405536,1763535045315,-1180.0,0.00029789,2]
[394405537,1763535045324,-339.0,0.00029855,2]
[394405538,1763535045333,-890.16587084,0.00029901,5]
[394405539,1763535045343,-303.76713658,0.00029902,102]
[394405540,1763535045352,-204.83267941,0.00029902,102]
[394405541,1763535045363,-13179.11134981,0.00029924,2]
[394405542,1763535045372,-2000.0,0.00029964,7]
[394405543,1763535045382,-1577.37931914,0.00029968,2]
[394405544,1763535045391,-2199.39,0.0003,14]
[394405545,1763535045400,-303.76713658,0.00030024,110]
[394405546,1763535045410,-227.53588212,0.00030024,110]
[394405547,1763535045422,-204.83267941,0.00030024,110]
[394405548,1763535045431,-151.69058806,0.00030024,110]
[394405549,1763535045440,-500.0,0.00030025,5]
[394405550,1763535045449,-202.12202389,0.0003011,2]
[394405551,1763535045459,-1000.0,0.000302,2]
[394405552,1763535045468,-671.65452239,0.000302,2]
[394405553,1763535045566,-151.0,0.000283,2]
[394405554,1763535045575,-328.34547761,0.000302,2]
[394405555,1763535045585,-151.0,0.000302,2]
[394405556,1763535045594,-151.0,0.000302,2]
[394405557,1763535045603,-1000.0,0.000302,2]
[394405558,1763535045613,-1000.0,0.000302,2]
[394405559,1763535045622,-166.70374664,0.000302,2]
[394405560,1763535045632,-1000.0,0.000302,2]
[394405561,1763535045641,-1000.0,0.000302,2]
[394405562,1763535045651,-1000.0,0.000302,2]
[394405563,1763535045660,-1000.0,0.000302,2]
[394405564,1763535045669,-1000.0,0.000302,2]
[394405565,1763535045678,-1000.0,0.000302,2]
[394405566,1763535045688,-1000.0,0.000302,2]
[394405567,1763535045697,-1000.0,0.000302,2]
[394405568,1763535045707,-1000.0,0.000302,2]
[394405569,1763535045716,-1091.42205962,0.00030436,5]
[394405570,1763535045725,-243.82595531,0.00030675,2]
[394405571,1763535045734,-1000.0,0.00030845,30]
[394405572,1763535045743,-2151.0,0.0003093,2]
[394405573,1763535045752,-989.0,0.0003093,2]
[394405574,1763535045761,-630.0,0.0003093,2]
[394405575,1763535045771,-16170.57,0.00031,2]
[394405576,1763535045780,-326.67928526,0.0003102,2]
[394405577,1763535045789,-5000.0,0.0003144,2]
[394405578,1763535045798,-941.46,0.00031736,2]
[394405579,1763535045808,-366.0,0.00031855,2]
[394405580,1763535045818,-231.646,0.00032242,31]
[394405581,1763535045827,-183.73296077,0.00032242,31]
[394405582,1763535045835,-242.96,0.00033038,2]
[394405583,1763535045844,-162.912725,0.00033684,2]
[394405584,1763535045854,-393.0,0.00033855,120]
[394405585,1763535045863,-1000.0,0.00033929,30]
[394405586,1763535045874,-244.0,0.00033929,30]
[394405587,1763535045884,-2151.0,0.0003393,2]
[394405588,1763535045894,-989.0,0.0003393,2]
[394405589,1763535045903,-630.0,0.0003393,2]
[394405590,1763535045912,-500.70682001,0.00034273,5]
[394405591,1763535045921,-500.0,0.00034273,5]
[394405592,1763535045930,-159.40504128,0.00034273,5]
[394405593,1763535045939,-158.99891625,0.00034273,5]
[394405594,1763535045949,-1168.6,0.000343,14]
[394405595,1763535045957,-1412.18,0.0003438,2]
[394405596,1763535045966,-150.0,0.00034411,5]
[394405597,1763535045975,-735.4,0.000345,7]
[394405598,1763535045984,-5000.0,0.0003469,2]
[394405599,1763535045993,-500.0,0.00034818,5]
[394405600,1763535046002,-1000.0,0.00034821,5]
[394405601,1763535046011,-162.912725,0.000349,5]
[394405602,1763535046020,-200.0,0.00034959,5]
[394405603,1763535046028,-508.05892608,0.00035366,5]
[394405604,1763535046038,-504.62212668,0.00035368,5]
[394405605,1763535046046,-250.0,0.00035507,5]
[394405606,1763535046055,-300.0,0.00036055,5]
[394405607,1763535046066,-2199.39,0.000361,30]
[394405608,1763535046076,-2227.03792797,0.0003624,2]
[394405609,1763535046084,-162.912725,0.00036286,5]
[394405610,1763535046093,-166.8028097,0.00036362,2]
[394405611,1763535046102,-350.0,0.00036603,5]
[394405612,1763535046112,-989.0,0.0003693,2]
[394405614,1763535046121,-16170.57,0.00037,2]
[394405615,1763535046130,-1882.91,0.00037025,2]
[394405616,1763535046138,-400.0,0.00037151,5]
[394405617,1763535046147,-1000.0,0.00037322,30]
[394405618,1763535046156,-492.0,0.00037322,30]
[394405619,1763535046165,-201.74,0.00037659,30]
[394405620,1763535046174,-162.912725,0.00037672,5]
[394405621,1763535046183,-1168.6,0.000377,14]
[394405622,1763535046192,-5000.0,0.0003794,3]
[394405623,1763535046202,-378.83,0.00038674,120]
[394405624,1763535046212,-162.912725,0.00039059,5]
[394405625,1763535046220,-168.824681,0.00039059,5]
[394405626,1763535046230,-168.824681,0.00039059,5]
[394405627,1763535046239,-250.0,0.00039323,10]
[394405628,1763535046248,-250.0,0.00039323,10]
[394405629,1763535046257,-250.0,0.00039323,10]
[394405630,1763535046266,-458.116583,0.00039323,10]
[394405631,1763535046275,-735.4,0.000394,7]
[394405632,1763535046284,-188.233375,0.000397,10]
[394405633,1763535046294,-2353.64,0.00039771,2]
[394405634,1763535046303,-397.756,0.0003993,2]
[394405635,1763535046314,-162.912725,0.00040445,5]
[394405636,1763535046323,-168.824681,0.00040445,5]
[394405637,1763535046332,-168.824681,0.00040445,5]
[394405638,1763535046341,-1026.2303531,0.00040726,2]
[394405639,1763535046350,-1000.0,0.00041054,90]
[394405641,1763535046360,-791.0,0.00041054,90]
[394405642,1763535046369,-403.48,0.00041083,30]
[394405643,1763535046379,-500.0,0.00041096,31]
[394405644,1763535046388,-500.0,0.00041096,31]
[394405645,1763535046398,-500.0,0.00041096,31]
[394405646,1763535046407,-500.0,0.00041096,31]
[394405647,1763535046417,-500.0,0.00041096,31]
[394405648,1763535046426,-500.0,0.00041096,31]
[394405649,1763535046435,-500.0,0.00041096,31]
[394405650,1763535046444,-500.0,0.00041096,31]
[394405651,1763535046454,-500.0,0.00041096,31]
[394405652,1763535046464,-500.0,0.00041096,31]
[394405653,1763535046474,-500.0,0.00041096,31]
[394405654,1763535046484,-500.0,0.00041096,31]
[394405655,1763535046493,-500.0,0.00041096,31]
[394405656,1763535046503,-500.0,0.00041096,31]
[394405657,1763535046512,-500.0,0.00041096,31]
[394405658,1763535046522,-500.0,0.00041096,31]
[394405659,1763535046532,-500.0,0.00041096,31]
[394405660,1763535046541,-419.4036147,0.00041096,31]
[394405661,1763535046551,-500.0,0.00041096,31]
[394405662,1763535046561,-500.0,0.00041096,31]